fUST/lending_fUST_20260525
["ID","MTS","AMOUNT","RATE_DAILY","PERIOD"]
[422977891,1779697857000,-834.81,0.0001452,2]
[422977892,1779697857000,-743.2,0.0001452,2]
[422977890,1779697857000,-921.15,0.0001452,2]
[422977889,1779697857000,-1109.5217,0.0001452,2]
[422977849,1779697857000,-620.28,0.00014246,2]
[422977896,1779697857000,-515.87,0.0001452,2]
[422977894,1779697857000,-1171.17,0.0001452,2]
[422977897,1779697857000,-609.68,0.0001452,2]
[422977905,1779697857000,-1257.9,0.0001452,2]
[422977884,1779697857000,-4115.35,0.00014246,2]
[422977906,1779697857000,-677.53,0.0001452,2]
[422977900,1779697857000,-622.45,0.0001452,2]
[422977899,1779697857000,-1132.45,0.0001452,2]
[422977898,1779697857000,-546.63,0.0001452,2]
[422977902,1779697857000,-620.28,0.0001452,2]
[422977903,1779697857000,-1317.18,0.0001452,2]
[422977901,1779697857000,-331.76,0.0001452,2]
[422977908,1779697857000,-4357.82,0.0001452,2]
[422977910,1779697857000,-964.7,0.0001452,2]
[422977907,1779697857000,-615.94,0.0001452,2]
[422977909,1779697857000,-1510.7084878,0.0001452,2]
[422977911,1779697857000,-2964.78473953,0.0001452,2]
[422977912,1779697857000,-853.71,0.0001452,2]
[422977914,1779697857000,-4179.92062656,0.0001452,2]
[422977904,1779697857000,-554.67,0.0001452,2]
[422977882,1779697857000,-856.54,0.00014246,2]
[422977895,1779697857000,-1118.94,0.0001452,2]
[422977883,1779697857000,-586.94,0.00014246,2]
[422977852,1779697857000,-554.67,0.00014246,2]
[422977851,1779697857000,-1316.95,0.00014246,2]
[422977853,1779697857000,-1257.68,0.00014246,2]
[422977893,1779697857000,-873.51,0.0001452,2]
[422977859,1779697857000,-2964.55,0.00014246,2]
[422977870,1779697857000,-1429.06,0.00014246,2]
[422977869,1779697857000,-1939.88,0.00014246,2]
[422977867,1779697857000,-1276.56,0.00014246,2]
[422977862,1779697857000,-4179.72,0.00014246,2]
[422977865,1779697857000,-1364.15,0.00014246,2]
[422977860,1779697857000,-853.49,0.00014246,2]
[422977866,1779697857000,-848.43,0.00014246,2]
[422977858,1779697857000,-964.48,0.00014246,2]
[422977861,1779697857000,-1731.17,0.00014246,2]
[422977855,1779697857000,-615.72,0.00014246,2]
[422977863,1779697857000,-901.22,0.00014246,2]
[422977864,1779697857000,-751.98,0.00014246,2]
[422977881,1779697857000,-1376.44,0.00014246,2]
[422977880,1779697857000,-635.84,0.00014246,2]
[422977877,1779697857000,-625.28,0.00014246,2]
[422977872,1779697857000,-1099.99,0.00014246,2]
[422977876,1779697857000,-1760.86,0.00014246,2]
[422977879,1779697857000,-5088.12,0.00014246,2]
[422977874,1779697857000,-689.81,0.00014246,2]
[422977871,1779697857000,-2485.17,0.00014246,2]
[422977873,1779697857000,-1210.42,0.00014246,2]
[422977875,1779697857000,-17098.84,0.00014246,2]
[422977868,1779697857000,-2065.05,0.00014246,2]
[422977878,1779697857000,-2458.36,0.00014246,2]
[422977920,1779697858000,-2065.14,0.0001452,2]
[422977943,1779697858000,-204.43692157,0.00016,2]
[422977933,1779697858000,-1376.45,0.0001452,2]
[422977930,1779697858000,-2458.52,0.0001452,2]
[422977925,1779697858000,-1210.6,0.0001452,2]
[422977927,1779697858000,-17098.90421882,0.0001452,2]
[422977924,1779697858000,-1100.05,0.0001452,2]
[422977929,1779697858000,-625.44,0.0001452,2]
[422977931,1779697858000,-5088.18,0.0001452,2]
[422977917,1779697858000,-1364.27,0.0001452,2]
[422977923,1779697858000,-2485.31,0.0001452,2]
[422977926,1779697858000,-689.97369804,0.0001452,2]
[422977922,1779697858000,-1429.21,0.0001452,2]
[422977928,1779697858000,-1761.03,0.0001452,2]
[422977921,1779697858000,-1940.02,0.0001452,2]
[422977915,1779697858000,-901.44252494,0.0001452,2]
[422977916,1779697858000,-752.16,0.0001452,2]
[422977918,1779697858000,-848.46018203,0.0001452,2]
[422977919,1779697858000,-1276.73,0.0001452,2]
[422977939,1779697858000,-1103.14186241,0.00015442,2]
[422977932,1779697858000,-636.03,0.0001452,2]
[422977945,1779697858000,-204.43692157,0.000163,2]
[422977941,1779697858000,-1194.4776297,0.00015888,2]
[422977937,1779697858000,-300.1850439,0.00015,2]
[422977958,1779697858000,-468124.89926137,0.00016394,2]
[422977953,1779697858000,-155.0,0.0001638,2]
[422977956,1779697858000,-221.45868067,0.0001638,2]
[422977949,1779697858000,-155.0,0.0001638,2]
[422977952,1779697858000,-155.0,0.0001638,2]
[422977957,1779697858000,-200.0,0.0001638,2]
[422977955,1779697858000,-155.0,0.0001638,2]
[422977954,1779697858000,-155.0,0.0001638,2]
[422977951,1779697858000,-155.0,0.0001638,2]
[422977950,1779697858000,-155.0,0.0001638,2]
[422977948,1779697858000,-155.0,0.0001638,2]
[422977946,1779697858000,-258.0,0.00016356,2]
[422977944,1779697858000,-204.43692157,0.000162,2]
[422977938,1779697858000,-4618.10389457,0.00015,15]
[422977940,1779697858000,-151.0,0.00015814,2]
[422977942,1779697858000,-1163.40141505,0.00016,2]
[422977936,1779697858000,-1590.91,0.0001452,2]
[422977934,1779697858000,-856.73,0.0001452,2]
[422977935,1779697858000,-4115.43988337,0.0001452,2]
[422977947,1779697858000,-155.0,0.0001638,2]
[422977975,1779697860000,-26475.21778812,0.00016394,2]
[422977974,1779697860000,-110010.11095856,0.00016394,2]
[422977978,1779697860000,-1233.93026423,0.00016394,2]
[422977977,1779697860000,-2461.52326438,0.00016394,2]
[422977979,1779697860000,-4913.35858039,0.00016394,2]
[422977982,1779697860000,-201.073,8.493e-05,2]
[422977983,1779697860000,-500.0,8.767e-05,2]
[422977984,1779697860000,-500.0,9.041e-05,2]
[422977981,1779697860000,-298.927,8.493e-05,2]
[422977973,1779697860000,-13347.03834564,0.00016394,2]
[422977976,1779697860000,-3393.1107164,0.00016394,2]
[422977972,1779697860000,-461.03,0.0001315,2]
[422977960,1779697860000,-152.0,0.00010879,7]
[422977968,1779697860000,-359.36834564,0.00012328,2]
[422977971,1779697860000,-500.0,0.00012876,2]
[422977969,1779697860000,-140.63165436,0.00012328,2]
[422977967,1779697860000,-500.0,0.00012054,2]
[422977966,1779697860000,-377.58766392,0.0001178,2]
[422977963,1779697860000,-500.0,0.00011506,2]
[422977965,1779697860000,-122.41233608,0.0001178,2]
[422977964,1779697860000,-597.07612084,0.0001178,2]
[422977962,1779697860000,-500.0,0.00011232,2]
[422977980,1779697860000,500.0,8.219e-05,2]
[422977961,1779697860000,-152.0,0.00010879,7]
[422977959,1779697860000,-0.36387916,0.0001178,2]
[422977970,1779697860000,-500.0,0.00012602,2]
[422977986,1779697860000,-4071.27330095,9.493e-05,2]
[422977985,1779697860000,-500.0,9.315e-05,2]
[422977987,1779697860000,-928.72669905,9.493e-05,2]
[422978011,1779697860000,-150.0,0.00017247,2]
[422978013,1779697860000,-15661.40436752,0.000175,2]
[422978014,1779697860000,500.0,8.219e-05,2]
[422978012,1779697860000,-401.0,0.000174,2]
[422978010,1779697860000,-166.707,0.00017247,2]
[422978006,1779697860000,-152.0,0.00017,30]
[422978005,1779697860000,-152.0,0.00017,30]
[422978007,1779697860000,-200.0,0.00017,2]
[422978004,1779697860000,-443.0,0.00016923,2]
[422978003,1779697860000,-185.0,0.00016923,2]
[422978001,1779697860000,-648.0,0.00016923,2]
[422978002,1779697860000,-557.0,0.00016923,2]
[422977999,1779697860000,-2204.0,0.00016923,2]
[422978000,1779697860000,-1413.0,0.00016923,2]
[422977998,1779697860000,-151.0,0.000169,2]
[422977988,1779697860000,-500.0,9.589e-05,2]
[422977997,1779697860000,-1000.0,0.00016585,5]
[422977996,1779697860000,-1169.7584206,0.0001652,2]
[422977993,1779697860000,-84641.98094804,0.00016394,2]
[422977995,1779697860000,-938.3780837,0.00016485,2]
[422977994,1779697860000,-200.0,0.00016438,2]
[422978009,1779697860000,-151.585,0.00017247,2]
[422977992,1779697860000,-15303.59238438,0.00016394,2]
[422977991,1779697860000,-3868.81048756,0.00016394,2]
[422977990,1779697860000,-28224.81330093,0.00016394,2]
[422978008,1779697860000,-152.0,0.00017022,30]
[422977989,1779697860000,-346.46,9.863e-05,2]
[422978015,1779697861000,771.32,8.219e-05,2]
[422978016,1779697877000,-5000.0,8.219e-05,2]
[422978017,1779697894000,-210.38939481,8.119e-05,2]
[422978018,1779697910000,-175.61957817,8.218e-05,2]
[422978062,1779698038000,434.9520946,0.00017808,120]
[422978071,1779698241000,-2053.863575,7.287e-05,2]
[422978073,1779698294000,-176.747651,7.691e-05,2]
[422978077,1779698348000,-166.6143561,7.879e-05,2]
[422978078,1779698401000,-150.0,8.058e-05,2]
[422978080,1779698454000,-189.0324859,8.067e-05,2]
[422978081,1779698508000,-175.61957817,8.217e-05,2]
[422978083,1779698561000,-500.0,8.218e-05,2]
[422978085,1779698615000,-500.0,8.218e-05,2]
[422978086,1779698668000,-3825.0,8.119e-05,2]
[422978088,1779698721000,-300.0,8.217e-05,2]
[422978090,1779698838000,-429.49343496,8.218e-05,2]
[422978144,1779699031000,-500.0,8.218e-05,2]
[422978128,1779699031000,-500.0,8.218e-05,2]
[422978142,1779699031000,-500.0,8.218e-05,2]
[422978130,1779699031000,-500.0,8.218e-05,2]
[422978140,1779699031000,-500.0,8.218e-05,2]
[422978126,1779699031000,-500.0,8.218e-05,2]
[422978118,1779699031000,-300.0,8.217e-05,2]
[422978136,1779699031000,-500.0,8.218e-05,2]
[422978134,1779699031000,-500.0,8.218e-05,2]
[422978124,1779699031000,-500.0,8.218e-05,2]
[422978122,1779699031000,-70.50656504,8.218e-05,2]
[422978120,1779699031000,-150.0,8.218e-05,2]
[422978146,1779699031000,-500.0,8.218e-05,2]
[422978138,1779699031000,-500.0,8.218e-05,2]
[422978148,1779699031000,-500.0,8.218e-05,2]
[422978132,1779699031000,-500.0,8.218e-05,2]
[422978161,1779699031000,-1746.71,8.219e-05,2]
[422978160,1779699031000,-500.0,8.219e-05,2]
[422978186,1779699031000,-164.44774898,8.219e-05,2]
[422978181,1779699031000,-500.0,8.219e-05,2]
[422978182,1779699031000,-500.0,8.219e-05,2]
[422978179,1779699031000,-500.0,8.219e-05,2]
[422978176,1779699031000,-500.0,8.219e-05,2]
[422978173,1779699031000,-503.12,8.219e-05,2]
[422978184,1779699031000,-500.0,8.219e-05,2]
[422978156,1779699031000,-500.0,8.219e-05,2]
[422978167,1779699031000,-500.0,8.219e-05,2]
[422978164,1779699031000,-500.0,8.219e-05,2]
[422978170,1779699031000,-500.0,8.219e-05,2]
[422978155,1779699031000,-196.64770041,8.219e-05,2]
[422978150,1779699031000,-500.0,8.218e-05,2]
[422978152,1779699031000,-500.0,8.218e-05,2]
[422978194,1779699032000,-335.55225102,8.219e-05,2]
[422978195,1779699032000,-58.92210783,8.219e-05,2]
[422978221,1779699043000,-441.07789217,8.219e-05,2]
[422978222,1779699043000,-78.10319668,8.219e-05,2]
[422978224,1779699043000,-500.0,8.219e-05,2]
[422978225,1779699043000,-500.0,8.219e-05,2]
[422978223,1779699043000,-976.22680332,8.219e-05,2]
[422978227,1779699043000,-500.0,8.219e-05,2]
[422978228,1779699043000,-500.0,8.219e-05,2]
[422978230,1779699043000,-396.85167834,8.219e-05,2]
[422978229,1779699043000,-500.0,8.219e-05,2]
[422978226,1779699043000,-500.0,8.219e-05,2]
[422978257,1779699054000,-500.0,8.219e-05,2]
[422978254,1779699054000,-500.0,8.219e-05,2]
[422978256,1779699054000,-500.0,8.219e-05,2]
[422978248,1779699054000,-500.0,8.219e-05,2]
[422978246,1779699054000,-380.60170981,8.219e-05,2]
[422978247,1779699054000,-500.0,8.219e-05,2]
[422978245,1779699054000,-500.0,8.219e-05,2]
[422978244,1779699054000,-500.0,8.219e-05,2]
[422978242,1779699054000,-500.0,8.219e-05,2]
[422978241,1779699054000,-4215.89,8.219e-05,2]
[422978240,1779699054000,-3432.38,8.219e-05,2]
[422978239,1779699054000,-103.14832166,8.219e-05,2]
[422978252,1779699054000,-716.31,8.219e-05,2]
[422978243,1779699054000,-500.0,8.219e-05,2]
[422978255,1779699054000,-500.0,8.219e-05,2]
[422978250,1779699054000,-500.0,8.219e-05,2]
[422978258,1779699054000,-739.18,8.219e-05,2]
[422978251,1779699054000,-560.81,8.219e-05,2]
[422978267,1779699054000,-500.0,8.219e-05,2]
[422978270,1779699054000,-500.0,8.493e-05,2]
[422978266,1779699054000,-5000.0,8.219e-05,2]
[422978265,1779699054000,-512.64,8.219e-05,2]
[422978268,1779699054000,-1673.93,8.219e-05,2]
[422978264,1779699054000,-500.41276019,8.219e-05,2]
[422978269,1779699054000,-2000.0,8.219e-05,2]
[422978262,1779699054000,-486.74563238,8.219e-05,2]
[422978261,1779699054000,-5000.0,8.219e-05,2]
[422978259,1779699054000,-500.0,8.219e-05,2]
[422978260,1779699054000,-815.39,8.219e-05,2]
[422978249,1779699054000,-500.0,8.219e-05,2]
[422978263,1779699054000,-500.0,8.219e-05,2]
[422978253,1779699054000,-500.0,8.219e-05,2]
[422978311,1779699055000,-500.0,8.767e-05,2]
[422978314,1779699055000,-500.0,8.767e-05,2]
[422978316,1779699055000,-371.19584571,8.767e-05,2]
[422978309,1779699055000,-500.0,8.767e-05,2]
[422978310,1779699055000,-503.12,8.767e-05,2]
[422978305,1779699055000,-500.0,8.767e-05,2]
[422978308,1779699055000,-500.0,8.767e-05,2]
[422978306,1779699055000,-500.0,8.767e-05,2]
[422978302,1779699055000,-512.64,8.493e-05,2]
[422978312,1779699055000,-500.0,8.767e-05,2]
[422978301,1779699055000,-581.09,8.493e-05,2]
[422978307,1779699055000,-500.0,8.767e-05,2]
[422978315,1779699055000,-500.0,8.767e-05,2]
[422978325,1779699055000,-500.0,8.767e-05,2]
[422978317,1779699055000,-1054.33,8.767e-05,2]
[422978318,1779699055000,-500.0,8.767e-05,2]
[422978319,1779699055000,-500.0,8.767e-05,2]
[422978320,1779699055000,-500.0,8.767e-05,2]
[422978323,1779699055000,-4215.89,8.767e-05,2]
[422978324,1779699055000,-235.72,8.767e-05,2]
[422978322,1779699055000,-3432.38,8.767e-05,2]
[422978321,1779699055000,-371.71076742,8.767e-05,2]
[422978328,1779699055000,-500.0,8.767e-05,2]
[422978326,1779699055000,-500.0,8.767e-05,2]
[422978327,1779699055000,-716.31,8.767e-05,2]
[422978303,1779699055000,-500.0,8.493e-05,2]
[422978313,1779699055000,-500.0,8.767e-05,2]
[422978304,1779699055000,-1673.93,8.493e-05,2]
[422978274,1779699055000,-500.0,8.493e-05,2]
[422978300,1779699055000,-500.0,8.493e-05,2]
[422978330,1779699055000,-739.18,8.767e-05,2]
[422978272,1779699055000,-500.0,8.493e-05,2]
[422978271,1779699055000,-500.0,8.493e-05,2]
[422978273,1779699055000,-500.0,8.493e-05,2]
[422978276,1779699055000,-500.0,8.493e-05,2]
[422978286,1779699055000,-500.0,8.493e-05,2]
[422978277,1779699055000,-500.0,8.493e-05,2]
[422978283,1779699055000,-500.0,8.493e-05,2]
[422978284,1779699055000,-500.0,8.493e-05,2]
[422978285,1779699055000,-500.0,8.493e-05,2]
[422978278,1779699055000,-500.0,8.493e-05,2]
[422978282,1779699055000,-1054.33,8.493e-05,2]
[422978281,1779699055000,-500.0,8.493e-05,2]
[422978279,1779699055000,-500.0,8.493e-05,2]
[422978280,1779699055000,-500.0,8.493e-05,2]
[422978288,1779699055000,-4215.89,8.493e-05,2]
[422978287,1779699055000,-3432.38,8.493e-05,2]
[422978289,1779699055000,-500.0,8.493e-05,2]
[422978291,1779699055000,-500.0,8.493e-05,2]
[422978297,1779699055000,-739.18,8.493e-05,2]
[422978290,1779699055000,-500.0,8.493e-05,2]
[422978294,1779699055000,-716.31,8.493e-05,2]
[422978298,1779699055000,-500.0,8.493e-05,2]
[422978295,1779699055000,-500.0,8.493e-05,2]
[422978292,1779699055000,-500.0,8.493e-05,2]
[422978293,1779699055000,-500.0,8.493e-05,2]
[422978296,1779699055000,-500.0,8.493e-05,2]
[422978299,1779699055000,-815.39,8.493e-05,2]
[422978329,1779699055000,-500.0,8.767e-05,2]
[422978275,1779699055000,-503.12,8.493e-05,2]
[422978332,1779699055000,-815.39,8.767e-05,2]
[422978366,1779699055000,-1673.93,9.041e-05,2]
[422978365,1779699055000,-500.0,9.041e-05,2]
[422978368,1779699055000,-500.0,9.315e-05,2]
[422978367,1779699055000,-500.0,9.315e-05,2]
[422978369,1779699055000,-500.0,9.315e-05,2]
[422978370,1779699055000,-500.0,9.315e-05,2]
[422978371,1779699055000,-500.0,9.315e-05,2]
[422978381,1779699055000,-3432.38,9.315e-05,2]
[422978380,1779699055000,-568.52,9.315e-05,2]
[422978372,1779699055000,-503.12,9.315e-05,2]
[422978375,1779699055000,-500.0,9.315e-05,2]
[422978373,1779699055000,-500.0,9.315e-05,2]
[422978376,1779699055000,-500.0,9.315e-05,2]
[422978378,1779699055000,-500.0,9.315e-05,2]
[422978379,1779699055000,-500.0,9.315e-05,2]
[422978377,1779699055000,-1054.33,9.315e-05,2]
[422978382,1779699055000,-4215.89,9.315e-05,2]
[422978383,1779699055000,-500.0,9.315e-05,2]
[422978385,1779699055000,-716.31,9.315e-05,2]
[422978384,1779699055000,-500.0,9.315e-05,2]
[422978386,1779699055000,-500.0,9.315e-05,2]
[422978390,1779699055000,-581.09,9.315e-05,2]
[422978391,1779699055000,-512.64,9.315e-05,2]
[422978387,1779699055000,-500.0,9.315e-05,2]
[422978388,1779699055000,-739.18,9.315e-05,2]
[422978389,1779699055000,-815.39,9.315e-05,2]
[422978331,1779699055000,-500.0,8.767e-05,2]
[422978361,1779699055000,-605.54135037,9.041e-05,2]
[422978364,1779699055000,-512.64,9.041e-05,2]
[422978374,1779699055000,-500.0,9.315e-05,2]
[422978363,1779699055000,-500.0,9.041e-05,2]
[422978341,1779699055000,-500.0,9.041e-05,2]
[422978362,1779699055000,-815.39,9.041e-05,2]
[422978333,1779699055000,-500.0,8.767e-05,2]
[422978336,1779699055000,-1673.93,8.767e-05,2]
[422978334,1779699055000,-512.64,8.767e-05,2]
[422978335,1779699055000,-500.0,8.767e-05,2]
[422978338,1779699055000,-500.0,9.041e-05,2]
[422978337,1779699055000,-420.0,9.039e-05,2]
[422978340,1779699055000,-500.0,9.041e-05,2]
[422978343,1779699055000,-503.12,9.041e-05,2]
[422978342,1779699055000,-500.0,9.041e-05,2]
[422978344,1779699055000,-583.9,9.041e-05,2]
[422978346,1779699055000,-500.0,9.041e-05,2]
[422978345,1779699055000,-500.0,9.041e-05,2]
[422978339,1779699055000,-500.0,9.041e-05,2]
[422978357,1779699055000,-716.31,9.041e-05,2]
[422978360,1779699055000,-739.18,9.041e-05,2]
[422978347,1779699055000,-500.0,9.041e-05,2]
[422978358,1779699055000,-500.0,9.041e-05,2]
[422978356,1779699055000,-500.0,9.041e-05,2]
[422978355,1779699055000,-500.0,9.041e-05,2]
[422978354,1779699055000,-4215.89,9.041e-05,2]
[422978359,1779699055000,-500.0,9.041e-05,2]
[422978349,1779699055000,-1054.33,9.041e-05,2]
[422978352,1779699055000,-500.0,9.041e-05,2]
[422978351,1779699055000,-500.0,9.041e-05,2]
[422978348,1779699055000,-500.0,9.041e-05,2]
[422978353,1779699055000,-3432.38,9.041e-05,2]
[422978350,1779699055000,-500.0,9.041e-05,2]
[422978433,1779699056000,-500.0,9.863e-05,2]
[422978437,1779699056000,-500.0,9.863e-05,2]
[422978436,1779699056000,-500.0,9.863e-05,2]
[422978434,1779699056000,-500.0,9.863e-05,2]
[422978432,1779699056000,-4215.89,9.863e-05,2]
[422978430,1779699056000,-500.0,9.863e-05,2]
[422978429,1779699056000,-1054.33,9.863e-05,2]
[422978428,1779699056000,-500.0,9.863e-05,2]
[422978435,1779699056000,-716.31,9.863e-05,2]
[422978427,1779699056000,-500.0,9.863e-05,2]
[422978424,1779699056000,-500.0,9.863e-05,2]
[422978438,1779699056000,-739.18,9.863e-05,2]
[422978431,1779699056000,-3432.38,9.863e-05,2]
[422978440,1779699056000,-512.64,9.863e-05,2]
[422978454,1779699056000,-3432.38,0.00010136,2]
[422978441,1779699056000,-500.0,9.863e-05,2]
[422978442,1779699056000,-1673.93,9.863e-05,2]
[422978449,1779699056000,-500.0,0.00010136,2]
[422978445,1779699056000,-500.0,0.00010136,2]
[422978447,1779699056000,-500.0,0.00010136,2]
[422978439,1779699056000,-815.39,9.863e-05,2]
[422978446,1779699056000,-500.0,0.00010136,2]
[422978444,1779699056000,-191.0,9.943e-05,2]
[422978448,1779699056000,-503.12,0.00010136,2]
[422978450,1779699056000,-500.0,0.00010136,2]
[422978452,1779699056000,-1054.33,0.00010136,2]
[422978451,1779699056000,-303.0,0.00010136,2]
[422978453,1779699056000,-318.02490624,0.00010136,2]
[422978426,1779699056000,-500.0,9.863e-05,2]
[422978443,1779699056000,-486.74563231,9.887e-05,2]
[422978425,1779699056000,-503.12,9.863e-05,2]
[422978395,1779699056000,-500.0,9.589e-05,2]
[422978423,1779699056000,-500.0,9.863e-05,2]
[422978393,1779699056000,-1673.93,9.315e-05,2]
[422978394,1779699056000,-500.0,9.589e-05,2]
[422978455,1779699056000,-4215.89,0.00010136,2]
[422978392,1779699056000,-500.0,9.315e-05,2]
[422978397,1779699056000,-500.0,9.589e-05,2]
[422978396,1779699056000,-500.0,9.589e-05,2]
[422978399,1779699056000,-503.12,9.589e-05,2]
[422978400,1779699056000,-500.0,9.589e-05,2]
[422978401,1779699056000,-500.0,9.589e-05,2]
[422978402,1779699056000,-240.16,9.589e-05,2]
[422978398,1779699056000,-500.0,9.589e-05,2]
[422978406,1779699056000,-500.0,9.589e-05,2]
[422978405,1779699056000,-402.44,9.589e-05,2]
[422978404,1779699056000,-1054.33,9.589e-05,2]
[422978407,1779699056000,-3432.38,9.589e-05,2]
[422978408,1779699056000,-4215.89,9.589e-05,2]
[422978403,1779699056000,-500.0,9.589e-05,2]
[422978409,1779699056000,-500.0,9.589e-05,2]
[422978410,1779699056000,-500.0,9.589e-05,2]
[422978420,1779699056000,-210.1307064,9.658e-05,2]
[422978412,1779699056000,-500.0,9.589e-05,2]
[422978421,1779699056000,-500.0,9.863e-05,2]
[422978415,1779699056000,-815.39,9.589e-05,2]
[422978419,1779699056000,-244.29171734,9.644e-05,7]
[422978414,1779699056000,-739.18,9.589e-05,2]
[422978413,1779699056000,-500.0,9.589e-05,2]
[422978411,1779699056000,-716.31,9.589e-05,2]
[422978417,1779699056000,-500.0,9.589e-05,2]
[422978416,1779699056000,-512.64,9.589e-05,2]
[422978422,1779699056000,-500.0,9.863e-05,2]
[422978461,1779699056000,-739.18,0.00010136,2]
[422978418,1779699056000,-1673.93,9.589e-05,2]
[422978458,1779699056000,-716.31,0.00010136,2]
[422978502,1779699056000,-503.12,0.00010958,2]
[422978495,1779699056000,-500.0,0.00010684,2]
[422978493,1779699056000,-500.0,0.00010684,2]
[422978494,1779699056000,-716.31,0.00010684,2]
[422978499,1779699056000,-512.64,0.00010684,2]
[422978496,1779699056000,-500.0,0.00010684,2]
[422978497,1779699056000,-739.18,0.00010684,2]
[422978498,1779699056000,-815.39,0.00010684,2]
[422978500,1779699056000,-622.39,0.00010684,2]
[422978501,1779699056000,-1673.93,0.00010684,2]
[422978504,1779699056000,-3432.38,0.00010958,2]
[422978503,1779699056000,-1054.33,0.00010958,2]
[422978515,1779699056000,-152.0,0.00010996,7]
[422978514,1779699056000,-1673.93,0.00010958,2]
[422978491,1779699056000,-3432.38,0.00010684,2]
[422978508,1779699056000,-500.0,0.00010958,2]
[422978509,1779699056000,-500.0,0.00010958,2]
[422978507,1779699056000,-716.31,0.00010958,2]
[422978516,1779699056000,-503.12,0.00011232,2]
[422978511,1779699056000,-815.39,0.00010958,2]
[422978510,1779699056000,-739.18,0.00010958,2]
[422978506,1779699056000,-500.0,0.00010958,2]
[422978505,1779699056000,-4215.89,0.00010958,2]
[422978512,1779699056000,-581.09,0.00010958,2]
[422978517,1779699056000,-1054.33,0.00011232,2]
[422978518,1779699056000,-3432.38,0.00011232,2]
[422978521,1779699056000,-716.31,0.00011232,2]
[422978520,1779699056000,-500.0,0.00011232,2]
[422978519,1779699056000,-4215.89,0.00011232,2]
[422978456,1779699056000,-279.3,0.00010136,2]
[422978513,1779699056000,-512.64,0.00010958,2]
[422978492,1779699056000,-4215.89,0.00010684,2]
[422978522,1779699056000,-500.0,0.00011232,2]
[422978490,1779699056000,-1054.33,0.00010684,2]
[422978457,1779699056000,-500.0,0.00010136,2]
[422978489,1779699056000,-503.12,0.00010684,2]
[422978460,1779699056000,-500.0,0.00010136,2]
[422978463,1779699056000,-512.64,0.00010136,2]
[422978462,1779699056000,-815.39,0.00010136,2]
[422978464,1779699056000,-500.0,0.00010136,2]
[422978475,1779699056000,-3432.38,0.0001041,2]
[422978465,1779699056000,-1673.93,0.00010136,2]
[422978468,1779699056000,-500.0,0.0001041,2]
[422978467,1779699056000,-177.0,0.00010218,2]
[422978470,1779699056000,-500.0,0.0001041,2]
[422978466,1779699056000,-581.09,0.00010136,2]
[422978469,1779699056000,-500.0,0.0001041,2]
[422978471,1779699056000,-503.12,0.0001041,2]
[422978473,1779699056000,-300.0,0.0001041,2]
[422978459,1779699056000,-500.0,0.00010136,2]
[422978474,1779699056000,-1054.33,0.0001041,2]
[422978472,1779699056000,-222.8,0.0001041,2]
[422978484,1779699056000,-500.0,0.0001041,2]
[422978487,1779699056000,-168.16,0.00010684,2]
[422978486,1779699056000,-402.17,0.00010684,2]
[422978483,1779699056000,-512.64,0.0001041,2]
[422978482,1779699056000,-815.39,0.0001041,2]
[422978485,1779699056000,-1673.93,0.0001041,2]
[422978480,1779699056000,-500.0,0.0001041,2]
[422978478,1779699056000,-716.31,0.0001041,2]
[422978479,1779699056000,-500.0,0.0001041,2]
[422978476,1779699056000,-4215.89,0.0001041,2]
[422978477,1779699056000,-500.0,0.0001041,2]
[422978481,1779699056000,-739.18,0.0001041,2]